bitfinex/quotes_SOLUSD_20220129
["timestamp","ask_amount","ask_price","bid_price","bid_amount"]
[1643458797890,6.0,96.267,96.203,103.7]
[1643458798086,6.0,96.283,96.214,103.7]
[1643458798285,6.0,96.283,96.216,103.7]
[1643458798488,6.0,96.305,96.226,6.0]
[1643458798687,6.0,96.305,96.227,24.2743]
[1643458798889,8.37201693,96.308,96.228,41.60072948]
[1643458799088,24.7266,96.316,96.228,41.60072948]
[1643458799288,24.7266,96.316,96.229,0.25]
[1643458799687,0.25,96.315,96.229,0.25]
[1643458800190,0.25,96.315,96.238,6.0]
[1643458800491,6.0,96.306,96.229,0.25]
[1643458800889,0.25,96.305,96.229,0.25]
[1643458801090,6.0,96.3,96.229,0.25]
[1643458801288,0.25,96.299,96.229,0.25]
[1643458801491,0.25,96.299,96.238,6.0]
[1643458801689,6.0,96.295,96.238,6.0]
[1643458801990,0.25,96.294,96.239,0.25]
[1643458802188,0.25,96.294,96.239,103.95]
[1643458802388,6.0,96.289,96.239,0.25]
[1643458802590,0.25,96.288,96.228,41.60072948]
[1643458803589,0.25,96.288,96.238,6.0]
[1643458803790,0.25,96.305,96.239,23.0471]
[1643458804189,0.25,96.305,96.228,41.60072948]
[1643458804190,17.23203426,96.3,96.228,41.60072948]
[1643458804489,6.0,96.29,96.229,24.3291]
[1643458804889,0.25,96.289,96.229,24.3291]
[1643458805593,0.25,96.289,96.239,6.0]
[1643458805791,0.25,96.294,96.24,0.25]
[1643458806891,0.25,96.294,96.228,41.60072948]
[1643458806892,1.16518631,96.292,96.228,41.60072948]
[1643458807095,6.0,96.282,96.228,41.60072948]
[1643458807291,0.25,96.281,96.228,41.60072948]
[1643458807693,0.25,96.281,96.19,24.7347]
[1643458807892,0.25,96.281,96.19,39.6947]
[1643458808095,2.95669142,96.28,96.19,24.7347]
[1643458808291,23.1323,96.279,96.19,24.7347]
[1643458808491,6.0,96.269,96.19,24.7347]
[1643458808693,13.88573554,96.269,96.191,33.7633566]
[1643458808894,0.25,96.268,96.191,33.7633566]
[1643458809095,6.0,96.26,96.201,6.0]
[1643458809294,0.25,96.259,96.201,6.0]
[1643458809694,6.0,96.258,96.191,33.7633566]
[1643458809895,0.25,96.257,96.191,33.7633566]
[1643458812398,0.25,96.257,96.192,23.6538]
[1643458812699,2.12923328,96.247,96.191,33.7633566]
[1643458812899,0.25,96.246,96.191,33.7633566]
[1643458813500,6.0,96.237,96.151,23.6847]
[1643458813698,6.0,96.237,96.152,22.5894]
[1643458813904,0.25,96.236,96.136,1.44390418]
[1643458814099,0.25,96.236,96.128,1.44390418]
[1643458814298,47.6549,96.236,96.124,1.44390418]
[1643458814499,6.0,96.226,96.127,1.44390418]
[1643458814701,15.601,96.22,96.127,1.44390418]
[1643458814900,15.601,96.22,96.126,1.44390418]
[1643458814901,30.8335,96.219,96.126,1.44390418]
[1643458815201,30.8335,96.219,96.125,34.29576054]
[1643458815202,8.55944512,96.209,96.125,34.29576054]
[1643458815403,8.55944512,96.209,96.109,1.44390418]
[1643458815404,103.95,96.208,96.109,1.44390418]
[1643458815603,6.0,96.198,96.104,1.44390418]
[1643458815803,14.96,96.19,96.108,1.44390418]
[1643458816103,6.0,96.18,96.094,1.44390418]
[1643458816299,15.61,96.16,96.095,36.80015927]
[1643458816502,6.0,96.15,96.095,36.80015927]
[1643458816901,0.25,96.149,96.095,36.80015927]
[1643458818626,6.0,96.15,96.095,36.80015927]
[1643458818828,0.25,96.149,96.095,36.80015927]
[1643458820429,6.0,96.15,96.095,36.80015927]
[1643458820629,15.607,96.18,96.105,6.0]
[1643458820828,15.607,96.18,96.106,0.25]
[1643458821032,6.0,96.17,96.106,0.25]
[1643458821631,6.0,96.185,96.106,0.25]
[1643458822432,9.87627277,96.184,96.106,6.25]
[1643458822631,6.0,96.174,96.106,6.25]
[1643458822831,0.25,96.173,96.106,6.25]
[1643458823633,6.0,96.18,96.107,6.0]
[1643458823833,6.0,96.18,96.108,0.25]
[1643458824031,6.0,96.18,96.117,35.95021442]
[1643458824234,22.8753,96.196,96.127,6.0]
[1643458824532,30.562,96.21,96.127,6.0]
[1643458824731,30.562,96.21,96.128,0.25]
[1643458824932,0.25,96.207,96.128,0.25]
[1643458825133,8.95077081,96.209,96.128,0.25]
[1643458825535,6.0,96.199,96.128,0.25]
[1643458825937,0.25,96.198,96.128,0.25]
[1643458828036,0.25,96.198,96.128,6.25]
[1643458828235,0.25,96.198,96.128,6.0]
[1643458828435,0.25,96.198,96.129,0.25]
[1643458828638,0.25,96.198,96.117,35.95021442]
[1643458828838,0.25,96.198,96.118,0.25]
[1643458829035,6.0,96.19,96.118,0.25]
[1643458829434,0.25,96.189,96.127,6.0]
[1643458829634,6.0,96.19,96.127,6.0]
[1643458830135,6.0,96.19,96.128,0.25]
[1643458830936,6.0,96.19,96.117,35.95021442]
[1643458830937,0.25,96.189,96.117,35.95021442]
[1643458831137,6.0,96.184,96.117,35.95021442]
[1643458831339,0.25,96.183,96.118,0.25]
[1643458832537,6.0,96.179,96.118,0.25]
[1643458832938,0.25,96.178,96.118,0.25]
[1643458833944,0.25,96.179,96.118,0.25]
[1643458834143,8.39187201,96.179,96.118,0.25]
[1643458834545,6.0,96.169,96.118,0.25]
[1643458834745,0.25,96.168,96.118,0.25]
[1643458836045,6.0,96.17,96.118,0.25]
[1643458836245,6.0,96.189,96.127,6.0]
[1643458836449,66.968,96.23,96.127,6.0]
[1643458836646,0.25,96.188,96.128,47.13]
[1643458836847,0.25,96.188,96.128,46.88]
[1643458837045,0.25,96.188,96.139,38.91429484]
[1643458837249,0.25,96.188,96.14,0.25]
[1643458837445,0.25,96.188,96.139,38.91429484]
[1643458837845,6.0,96.2,96.139,38.91429484]
[1643458837846,0.25,96.199,96.139,38.91429484]
[1643458838653,6.0,96.2,96.139,38.91429484]
[1643458838852,6.0,96.2,96.14,0.25]
[1643458839153,6.0,96.2,96.139,38.91429484]
[1643458839554,6.0,96.198,96.139,38.91429484]
[1643458839952,6.0,96.19,96.139,38.91429484]
[1643458840251,0.25,96.189,96.139,38.91429484]
[1643458843253,2.95669142,96.188,96.139,38.91429484]
[1643458843655,0.25,96.187,96.139,38.91429484]
[1643458844656,0.25,96.189,96.139,38.91429484]
[1643458845256,0.25,96.199,96.139,38.91429484]
[1643458845860,6.0,96.203,96.139,38.91429484]
[1643458846058,6.0,96.209,96.139,38.91429484]
[1643458847359,0.25,96.208,96.14,0.25]
[1643458847958,0.25,96.208,96.139,38.91429484]
[1643458848359,6.0,96.2,96.139,38.91429484]
[1643458848762,0.25,96.199,96.139,38.91429484]
[1643458849158,6.0,96.197,96.139,38.91429484]
[1643458849360,0.25,96.196,96.139,38.91429484]
[1643458849760,0.25,96.196,96.14,0.25]
[1643458849968,6.0,96.2,96.14,0.25]
[1643458850364,6.0,96.2,96.139,38.91429484]
[1643458851368,0.25,96.199,96.139,38.91429484]
[1643458852894,15.606,96.19,96.139,38.91429484]
[1643458853298,0.25,96.189,96.139,38.91429484]
[1643458853995,6.0,96.18,96.139,38.91429484]
[1643458854194,6.0,96.18,96.14,0.25]
[1643458854394,6.0,96.2,96.14,0.25]
[1643458855093,21.604,96.2,96.14,0.25]
[1643458855296,0.25,96.199,96.14,0.25]
[1643458856098,15.606,96.19,96.139,38.91429484]
[1643458856298,0.25,96.189,96.139,38.91429484]
[1643458856497,6.0,96.18,96.139,38.91429484]
[1643458856897,0.25,96.179,96.139,38.91429484]
[1643458857902,0.25,96.189,96.139,38.91429484]
[1643458858101,15.607,96.18,96.122,1.44390418]
[1643458858302,0.25,96.179,96.123,1.44390418]
[1643458858503,6.0,96.17,96.118,1.44390418]
[1643458858803,0.25,96.169,96.119,1.69390418]
[1643458859002,0.25,96.169,96.119,1.44390418]
[1643458859202,0.25,96.169,96.12,34.52464432]
[1643458860005,0.25,96.169,96.12,35.7185485]
[1643458860203,0.25,96.169,96.12,34.27464432]
[1643458861610,2.95669142,96.168,96.113,1.44390418]
[1643458861805,0.25,96.167,96.112,1.44390418]
[1643458862004,6.0,96.158,96.109,1.44390418]
[1643458862204,6.0,96.158,96.107,1.44390418]
[1643458862405,0.25,96.157,96.104,24.5732]
[1643458862608,6.0,96.156,96.102,1.44390418]
[1643458862808,0.25,96.155,96.099,1.44390418]
[1643458863408,201.94,96.15,96.06,2.88258441]
[1643458863608,186.98,96.13,96.033,4.31852135]
[1643458863811,14.96,96.12,96.03,2.88258441]
[1643458864111,6.0,96.119,96.019,2.88258441]
[1643458864307,8.07017636,96.109,96.02,38.48806305]
[1643458864508,6.0,96.099,96.021,27.14228453]
[1643458864710,6.0,96.099,96.022,2.89288453]
[1643458864909,0.50088828,96.089,96.022,2.89288453]
[1643458865112,0.50088828,96.089,96.021,24.2494]
[1643458865311,0.75088828,96.089,96.021,24.2494]
[1643458866111,0.25,96.089,96.022,0.25]
[1643458866510,0.25,96.089,96.022,103.95]
[1643458866712,0.25,96.089,96.022,0.25]
[1643458866910,0.25,96.089,96.021,24.2494]
[1643458867113,0.25,96.089,96.022,103.7]
[1643458867311,0.25,96.089,96.023,2.81394193]
[1643458868322,0.25,96.089,96.024,0.25]
[1643458868512,6.0,96.085,96.024,0.25]
[1643458868713,6.0,96.08,96.024,0.25]
[1643458868913,0.25,96.079,96.024,0.25]
[1643458869517,0.25,96.079,96.034,103.7]
[1643458869918,0.25,96.079,96.035,24.4976]
[1643458870223,0.25,96.109,96.035,30.4976]
[1643458870417,0.25,96.109,96.035,24.4976]
[1643458870618,7.22407224,96.109,96.036,35.31218168]
[1643458870841,7.22407224,96.109,96.037,0.25]
[1643458871444,0.25,96.109,96.037,0.25]
[1643458871644,6.0,96.099,96.037,0.25]
[1643458871843,0.25,96.098,96.037,0.25]
[1643458872045,6.25,96.098,96.037,0.25]
[1643458872847,0.25,96.098,96.037,0.25]
[1643458873249,0.25,96.099,96.046,6.0]
[1643458874048,30.579,96.11,96.046,6.0]
[1643458874247,0.25,96.207,96.047,26.97914193]
[1643458874248,52.046,96.16,96.047,26.97914193]
[1643458874451,7.61281389,96.159,96.048,126.9082]
[1643458874648,0.25,96.159,96.058,6.0]
[1643458874850,0.25,96.159,96.06,118.66]
[1643458875048,0.25,96.159,96.07,6.0]
[1643458875248,0.25,96.159,96.072,103.7]
[1643458875650,0.25,96.159,96.082,6.0]
[1643458875851,0.25,96.169,96.083,151.1139]
[1643458876050,6.25,96.169,96.083,159.92784193]
[1643458876252,6.0,96.16,96.084,2.81394193]
[1643458876751,6.0,96.159,96.095,144.13567092]
[1643458876951,6.0,96.16,96.095,144.13567092]
[1643458877151,6.0,96.16,96.105,6.0]
[1643458877351,6.0,96.16,96.106,0.25]
[1643458877552,15.609,96.17,96.106,6.25]
[1643458877751,14.96,96.18,96.107,103.7]
[1643458877953,30.566,96.19,96.107,103.7]
[1643458878153,30.566,96.19,96.117,6.0]
[1643458878356,30.566,96.19,96.118,0.25]
[1643458878551,30.566,96.19,96.118,6.25]
[1643458878752,30.566,96.19,96.119,43.80101964]
[1643458878952,30.566,96.19,96.119,49.80101964]
[1643458879152,6.0,96.18,96.12,0.25]
[1643458879352,0.25,96.179,96.12,0.25]
[1643458882658,0.25,96.179,96.119,43.80101964]
[1643458884058,21.607,96.18,96.119,43.80101964]
[1643458885260,0.25,96.179,96.119,43.80101964]
[1643458885461,21.607,96.18,96.119,43.80101964]
[1643458885662,21.607,96.18,96.086,24.2733]
[1643458885862,21.607,96.18,96.097,6.0]
[1643458886061,21.607,96.18,96.098,23.3417]
[1643458886662,21.607,96.18,96.099,37.96548993]
[1643458886866,0.25,96.179,96.099,37.96548993]
[1643458887662,0.25,96.179,96.1,0.25]
[1643458888865,0.25,96.179,96.099,37.71548993]
[1643458891064,0.25,96.179,96.1,0.25]
[1643458892570,0.25,96.179,96.099,37.71548993]
[1643458892768,15.609,96.17,96.099,37.71548993]
[1643458892968,0.40744162,96.169,96.099,37.71548993]
[1643458893168,6.0,96.16,96.099,37.71548993]
[1643458893372,0.25,96.159,96.099,37.71548993]
[1643458894371,6.0,96.16,96.1,0.25]
[1643458895779,0.25,96.159,96.1,0.25]
[1643458895978,6.0,96.16,96.1,0.25]
[1643458896175,6.0,96.16,96.101,2.81394193]
[1643458896374,6.0,96.169,96.109,6.0]
[1643458896576,6.0,96.169,96.111,6.0]
[1643458896880,13.87417084,96.18,96.112,0.25]
[1643458897110,13.87417084,96.18,96.102,0.25]
[1643458897309,0.25,96.179,96.112,103.7]
[1643458897706,0.25,96.179,96.113,0.25]
[1643458898609,6.0,96.178,96.113,0.25]
[1643458898805,0.25,96.177,96.109,0.25]
[1643458899812,0.25,96.177,96.106,0.25]
[1643458902009,6.0,96.17,96.112,6.0]
[1643458902413,0.25,96.169,96.106,0.25]
[1643458902611,0.25,96.169,96.112,6.0]
[1643458903112,14.96,96.21,96.113,106.51312125]
[1643458903311,2.8748617,96.233,96.12,15.599]
[1643458903513,24.6724,96.239,96.13,6.0]
[1643458903716,74.1866,96.251,96.13,6.0]
[1643458903717,2.8748617,96.255,96.131,24.5595]
[1643458903911,2.87753207,96.262,96.133,62.21]
[1643458904111,2.87753207,96.262,96.132,44.1125379]
[1643458904112,112.8,96.263,96.135,62.21]
[1643458904311,2.8748617,96.285,96.17,15.591]
[1643458904516,2.8748617,96.285,96.18,6.0]
[1643458904711,45.5287,96.29,96.181,103.7]
[1643458904912,45.5287,96.29,96.182,41.70818943]
[1643458905119,2.87999395,96.289,96.193,103.7]
[1643458905311,45.5287,96.29,96.195,103.7]
[1643458905511,51.959,96.32,96.205,6.0]
[1643458905512,2.8748617,96.299,96.205,6.0]
[1643458905716,2.8748617,96.304,96.206,46.1452]
[1643458905912,2.8748617,96.304,96.206,46.3952]
[1643458906115,2.8748617,96.307,96.221,34.41816277]
[1643458906318,2.8748617,96.311,96.223,103.7]
[1643458906513,4.24099602,96.331,96.223,103.7]
[1643458906514,4.24099602,96.331,96.233,6.0]
[1643458906715,14.96,96.35,96.233,6.0]
[1643458906913,2.88181667,96.33,96.24,6.0]
[1643458907117,14.96,96.35,96.241,150.2806046]
[1643458907314,15.582,96.34,96.241,153.34208112]
[1643458907517,21.582,96.34,96.252,103.7]
[1643458907717,16.15879013,96.364,96.252,103.7]
[1643458907718,16.15879013,96.364,96.262,6.0]
[1643458907919,14.96,96.4,96.263,103.7]
[1643458908116,16.14217585,96.387,96.273,6.0]
[1643458908315,16.14217585,96.387,96.274,0.25]
[1643458908516,15.575,96.38,96.275,62.21]
[1643458908716,15.575,96.38,96.275,65.02147652]
[1643458908919,15.575,96.38,96.285,6.0]
[1643458909115,15.575,96.38,96.286,103.7]
[1643458909317,15.575,96.38,96.286,106.76147652]
[1643458909517,6.0,96.37,96.296,6.0]
[1643458909718,6.0,96.37,96.297,42.03747467]
[1643458910020,21.576,96.37,96.297,42.03747467]
[1643458910219,2.95669142,96.369,96.297,42.03747467]
[1643458910618,6.0,96.359,96.297,42.03747467]
[1643458910821,19.20916707,96.358,96.297,42.03747467]
[1643458911019,6.0,96.348,96.297,42.03747467]
[1643458911423,6.0,96.34,96.297,42.03747467]
[1643458911619,0.25,96.347,96.297,42.03747467]
[1643458912018,15.575,96.38,96.307,6.0]
[1643458912221,14.96,96.41,96.307,6.0]
[1643458912419,14.96,96.43,96.308,46.8337]
[1643458912620,2.95669142,96.428,96.308,52.8337]
[1643458912819,2.95669142,96.428,96.308,52.5837]
[1643458913019,23.58895479,96.427,96.309,0.25]
[1643458913421,6.0,96.417,96.309,0.25]
[1643458913620,6.0,96.415,96.297,42.03747467]
[1643458913820,0.25,96.414,96.309,0.25]
[1643458914025,15.572,96.4,96.309,0.25]
[1643458914323,1.60371679,96.399,96.309,0.25]
[1643458914520,1.60371679,96.399,96.31,2.81147652]
[1643458914721,0.25,96.399,96.31,2.81147652]
[1643458914920,0.25,96.399,96.32,6.0]
[1643458915320,0.25,96.399,96.321,0.25]
[1643458915724,0.25,96.399,96.321,36.3751369]
[1643458916121,0.25,96.399,96.331,6.0]
[1643458916320,0.25,96.399,96.332,0.25]
[1643458916520,6.0,96.39,96.332,0.25]
[1643458916922,0.25,96.389,96.332,0.25]
[1643458917921,15.569,96.42,96.333,2.81147652]
[1643458918122,3.0,96.502,96.343,6.0]
[1643458918123,66.849,96.45,96.343,6.0]
[1643458918323,14.96,96.49,96.35,14.96]
[1643458918520,3.0,96.474,96.36,6.0]
[1643458918723,16.15879013,96.477,96.36,6.0]
[1643458918921,18.61359467,96.476,96.361,45.2927588]
[1643458919126,14.96,96.47,96.371,6.0]
[1643458919325,14.96,96.47,96.372,0.25]
[1643458919522,21.562,96.46,96.372,0.25]
[1643458919927,6.0,96.451,96.372,0.25]
[1643458920125,0.25,96.459,96.372,0.25]
[1643458920727,15.564,96.45,96.372,0.25]
[1643458921126,0.25,96.449,96.372,0.25]
[1643458921728,15.564,96.45,96.372,0.25]
[1643458923129,0.25,96.449,96.372,0.25]
[1643458923729,0.25,96.449,96.362,0.25]
[1643458923930,6.0,96.44,96.362,0.25]
[1643458924332,0.3775122,96.439,96.362,0.25]
[1643458924730,0.3775122,96.439,96.363,2.81147652]
[1643458924931,0.3775122,96.439,96.371,6.0]
[1643458925131,0.3775122,96.439,96.373,6.0]
[1643458925331,0.1275122,96.439,96.374,0.25]
[1643458925532,0.1275122,96.439,96.382,6.0]
[1643458925934,0.1275122,96.439,96.383,42.46456962]
[1643458927738,0.1275122,96.439,96.393,6.0]
[1643458928139,0.1275122,96.439,96.394,6.25]
[1643458929037,0.1275122,96.439,96.395,6.0]
[1643458929339,0.1275122,96.439,96.404,6.0]
[1643458929546,0.1275122,96.439,96.4,6.0]
[1643458929940,0.1275122,96.439,96.406,6.0]
[1643458930139,0.1275122,96.439,96.407,37.3736036]
[1643458930341,0.1275122,96.439,96.407,37.6236036]
[1643458930539,0.1275122,96.439,96.417,6.0]
[1643458930780,0.0075122,96.439,96.418,0.25]
[1643458930976,0.0075122,96.439,96.418,3.06147652]
[1643458931373,0.0075122,96.439,96.429,39.2821778]
[1643458931578,0.0075122,96.439,96.43,3.41650737]
[1643458931775,0.0075122,96.439,96.43,3.66650737]
[1643458932676,0.0075122,96.439,96.43,3.41650737]
[1643458934983,0.0075122,96.439,96.39,14.96]
[1643458935182,0.0075122,96.439,96.36,14.96]
[1643458935382,0.0075122,96.439,96.353,24.4442]
[1643458935884,0.0075122,96.439,96.372,45.95823501]
[1643458936886,0.0075122,96.439,96.373,0.25]
[1643458937689,0.0075122,96.439,96.374,2.81143663]
[1643458937888,0.0075122,96.439,96.382,6.0]
[1643458938093,0.0075122,96.439,96.384,6.0]
[1643458938286,0.0075122,96.439,96.385,0.25]
[1643458938488,0.0075122,96.439,96.375,0.25]
[1643458938890,0.0075122,96.439,96.39,14.96]
[1643458939095,0.0075122,96.439,96.4,6.0]
[1643458939687,0.0075122,96.439,96.401,35.14815558]
[1643458941591,0.0075122,96.439,96.411,6.0]
[1643458942193,0.0075122,96.439,96.412,0.25]
[1643458942591,0.0075122,96.439,96.401,35.14815558]
[1643458942796,0.0075122,96.439,96.402,0.25]
[1643458942991,0.0075122,96.439,96.411,6.0]
[1643458943391,0.0075122,96.439,96.402,0.25]
[1643458943992,0.0075122,96.439,96.401,35.14815558]
[1643458945697,0.0075122,96.439,96.402,0.25]
[1643458946194,0.0075122,96.439,96.402,13.93]
[1643458949100,0.2550244,96.439,96.403,65.0]
[1643458949298,0.2550244,96.439,96.402,13.93]
[1643458949523,0.2550244,96.439,96.381,23.7498]
[1643458950234,0.2550244,96.439,96.36,14.96]
[1643458950426,0.2550244,96.439,96.322,42.06597781]
[1643458950626,2.49968514,96.437,96.322,42.06597781]
[1643458950827,15.569,96.43,96.322,42.06597781]
[1643458951025,24.1913,96.429,96.322,42.06597781]
[1643458951226,21.26823005,96.419,96.322,44.87949137]
[1643458951524,27.26823005,96.419,96.322,44.87949137]
[1643458951725,0.25,96.418,96.323,0.25]
[1643458952123,15.572,96.41,96.323,0.25]
[1643458952326,0.25,96.409,96.324,2.81351356]
[1643458952524,6.0,96.4,96.324,2.81351356]
[1643458952726,6.0,96.4,96.325,0.25]
[1643458952926,0.25,96.399,96.325,0.25]
[1643458953127,0.25,96.399,96.324,2.81351356]
[1643458953329,0.25,96.399,96.322,42.06597781]
[1643458953527,6.0,96.394,96.322,42.06597781]
[1643458953728,6.0,96.39,96.322,42.06597781]
[1643458953928,19.6292779,96.389,96.322,42.06597781]
[1643458954128,6.0,96.379,96.322,42.06597781]
[1643458954329,0.25,96.378,96.322,42.06597781]
[1643458955532,6.25,96.389,96.322,42.06597781]
[1643458956133,0.25,96.389,96.323,3.06351356]
[1643458956332,0.25,96.419,96.323,3.06351356]
[1643458956533,6.0,96.418,96.323,0.25]
[1643458956833,22.30529762,96.417,96.322,42.06597781]
[1643458957033,6.0,96.407,96.322,42.06597781]
[1643458957435,0.25,96.406,96.322,42.06597781]
[1643458957634,9.20669142,96.406,96.322,42.06597781]
[1643458957837,3.20669142,96.406,96.322,42.06597781]
[1643458958036,6.0,96.396,96.322,42.06597781]
[1643458958436,6.0,96.388,96.322,42.06597781]
[1643458959640,6.0,96.38,96.322,42.06597781]
[1643458959839,0.25,96.379,96.322,42.06597781]
[1643458960443,6.0,96.38,96.322,42.06597781]
[1643458960842,2.95669142,96.378,96.322,42.06597781]
[1643458961041,2.95669142,96.378,96.226,74.9121]
[1643458961042,6.0,96.368,96.23,14.96]
[1643458961350,6.0,96.368,96.231,48.2274]
[1643458961542,6.0,96.366,96.233,2.81351356]
[1643458961740,24.9227,96.365,96.233,2.81351356]
[1643458961943,6.0,96.357,96.234,46.08020703]
[1643458962142,6.0,96.355,96.234,46.08020703]
[1643458962342,6.25,96.354,96.245,103.7]
[1643458962542,6.25,96.354,96.246,23.2187]
[1643458962743,6.25,96.354,96.246,23.4687]
[1643458963142,6.25,96.354,96.246,127.1687]
[1643458963645,2.90726109,96.349,96.246,23.4687]
[1643458963844,0.25,96.348,96.246,23.4687]
[1643458964053,6.0,96.339,96.246,23.4687]
[1643458964246,0.25,96.338,96.246,23.4687]
[1643458964847,0.25,96.338,96.247,2.81351356]
[1643458965048,0.25,96.338,96.257,6.0]
[1643458965248,0.25,96.338,96.258,40.07910103]
[1643458965648,0.25,96.338,96.268,6.0]
[1643458966948,0.25,96.338,96.269,0.25]
[1643458967150,6.0,96.34,96.269,3.06351356]
[1643458967550,6.0,96.355,96.279,6.0]
[1643458967849,6.0,96.355,96.28,0.25]
[1643458968055,6.0,96.357,96.28,3.06351356]
[1643458968275,6.0,96.357,96.28,0.25]
[1643458968476,21.58,96.36,96.29,6.0]
[1643458968676,21.58,96.36,96.291,43.01118602]
[1643458968875,21.58,96.36,96.292,0.25]
[1643458969075,6.0,96.354,96.292,0.25]
[1643458969277,6.0,96.35,96.301,6.0]
[1643458969476,6.0,96.35,96.292,0.25]
[1643458969677,0.25,96.349,96.292,0.25]
[1643458970681,0.25,96.349,96.291,43.01118602]
[1643458971677,6.0,96.348,96.291,43.01118602]
[1643458971877,6.0,96.34,96.291,43.01118602]
[1643458972377,6.0,96.34,96.292,0.25]
[1643458973183,6.0,96.34,96.292,11.24]
[1643458973381,6.0,96.36,96.292,11.24]
[1643458973784,6.0,96.36,96.293,0.25]
[1643458973785,0.25,96.359,96.293,0.25]
[1643458974982,0.25,96.359,96.293,3.06351356]
[1643458975185,0.25,96.359,96.302,6.0]
[1643458975385,0.25,96.359,96.303,6.25]
[1643458975788,0.25,96.379,96.303,6.25]
[1643458975999,0.25,96.379,96.304,6.0]
[1643458976188,6.0,96.38,96.313,6.0]
[1643458976386,6.0,96.38,96.314,0.25]
[1643458976787,6.0,96.38,96.315,2.81351356]
[1643458976988,6.0,96.38,96.325,6.0]
[1643458977188,21.576,96.38,96.316,0.25]
[1643458977388,0.25,96.379,96.326,33.91104228]
[1643458977789,0.25,96.379,96.327,0.25]
[1643458978309,0.25,96.389,96.327,0.25]
[1643458979293,0.25,96.389,96.326,33.91104228]
[1643458979519,6.25,96.389,96.326,33.91104228]
[1643458980094,15.575,96.38,96.326,33.91104228]
[1643458980294,0.25,96.379,96.326,33.91104228]
[1643458980499,6.0,96.37,96.326,33.91104228]
[1643458980898,15.575,96.38,96.327,0.25]
[1643458981296,0.25,96.379,96.327,0.25]
[1643458983299,0.25,96.379,96.326,33.91104228]
[1643458983501,6.0,96.37,96.326,33.91104228]
[1643458983698,6.0,96.37,96.327,0.25]
[1643458983899,0.25,96.379,96.326,33.91104228]
[1643458984100,0.25,96.379,96.327,0.25]
[1643458984898,0.25,96.379,96.326,33.91104228]
[1643458985701,1.43906192,96.396,96.326,33.91104228]
[1643458985702,6.0,96.386,96.326,33.91104228]
[1643458985899,10.0,96.38,96.326,33.91104228]
[1643458986300,0.25,96.379,96.327,0.25]
[1643458991108,0.25,96.379,96.327,103.95]
[1643458991510,0.25,96.379,96.337,6.0]
[1643458991908,0.25,96.379,96.338,0.25]
[1643458992115,0.25,96.379,96.327,103.7]
[1643458992314,0.25,96.379,96.328,0.25]
[1643458999636,0.25,96.379,96.327,0.25]
[1643459000238,0.25,96.379,96.328,2.80698587]
[1643459000640,0.25,96.379,96.329,0.25]
[1643459001842,10.0,96.38,96.329,0.25]
[1643459002045,1.43906192,96.413,96.338,6.0]